{"text_format":"1","workbook":"xlsx","n_sheets":3,"sheets":["Табло","Списък с оборудване","Данни за обобщена таблица"],"not_rendered":{"charts":0,"images":0,"macros":1,"external_links":0,"defined_names":13,"comments":0,"pivot_tables":1},"unopened":[],"bounds":{"document_bytes":16777216,"sheet_cells":100000,"rows_first":2000,"rows_last":500,"rows_between":2000,"halvings":0,"cell_chars":16384,"cell_head_chars":4096},"cells_cut":0,"cells_raw":0,"read":"whole","date_system":"1900"}

{"sheet":"Табло","index":0,"n_rows":20,"n_cols":6,"rows_kept":20,"cut":false,"hidden":false,"merged":[]}
[null,"Табло"]
[]
[]
[null,null,null,null,null,"Общ брой"]
[null,null,null,null,null,{"$f":"GETPIVOTDATA(\"Брой\",'Данни за обобщена таблица'!$B$11)","v":3}]
[]
[null,null,null,null,null,"Общо разходи за месец"]
[null,null,null,null,null,{"$f":"GETPIVOTDATA(\"Общо разходи за месец\",'Данни за обобщена таблица'!$B$11)","v":1765.5943035068672}]
[]
[null,null,null,null,null,"Оперативни разходи"]
[null,null,null,null,null,{"$f":"GETPIVOTDATA(\"Оперативни разходи\",'Данни за обобщена таблица'!$B$11)","v":605}]
[]
[null,null,null,null,null,"Месечна амортизация"]
[null,null,null,null,null,{"$f":"GETPIVOTDATA(\"Месечна амортизация\",'Данни за обобщена таблица'!$B$11)","v":659.72222222222217}]
[]
[null,null,null,null,null,"Сума на плащане"]
[null,null,null,null,null,{"$f":"GETPIVOTDATA(\"Сума на плащане\",'Данни за обобщена таблица'!$B$11)","v":1160.5943035068672}]
[]
[null,null,null,null,null,"Текуща стойност"]
[null,null,null,null,null,{"$f":"GETPIVOTDATA(\"Текуща стойност \",'Данни за обобщена таблица'!$B$11)","v":36036.073059360737}]

{"sheet":"Списък с оборудване","index":1,"n_rows":9,"n_cols":20,"rows_kept":9,"cut":false,"hidden":false,"merged":[]}
[null,"Списък с оборудване"]
[]
[null,null,null,"Засвети, когато остават по-малко месечни плащания от: ",20]
[]
[null,"Актив или \nсериен номер","Описание на артикул\n(марка и модел)","Местоположение","Състояние","Доставчик","Оставащи \nгодини работа ","Първоначална стойност","Първоначална вноска","Дата на покупка \nили лизинг","Срок на заем\n(години)","Лихвен процент на заема","Оперативни разходи \nза месец","Очаквана стойност в края на договора","Оставащи \nмесечни плащания","Месечно плащане","Общо \nразходи за месец","Годишна амортизация\n(линейна)","Месечна амортизация\n(линейна)","Текуща стойност"]
[null,123,"Марка модел 1","Главен офис","Добра","Локално",5,30000,5000,"2011-01-15",4,0.1,200,20000,{"$f":"IFERROR(SUMPRODUCT(--(DAY(ROW(OFFSET($A$1,,,DATE(YEAR(ОБОРУДВАНЕ[[#This Row],[Дата на покупка \nили лизинг]])+ОБОРУДВАНЕ[[#This Row],[Срок на заем\n(години)]],MONTH(ОБОРУДВАНЕ[[#This Row],[Дата на покупка \nили лизинг]])-1,DAY(ОБОРУДВАНЕ[[#This Row],[Дата на покупка \nили лизинг]]))-TODAY()))+DATE(YEAR(ОБОРУДВАНЕ[[#This Row],[Дата на покупка \nили лизинг]])+ОБОРУДВАНЕ[[#This Row],[Срок на заем\n(години)]],MONTH(ОБОРУДВАНЕ[[#This Row],[Дата на покупка \nили лизинг]]),DAY(ОБОРУДВАНЕ[[#This Row],[Дата на покупка \nили лизинг]]))-1)=DAY(ОБОРУДВАНЕ[[#This Row],[Дата на покупка \nили лизинг]]))),0)","v":23},{"$f":"IFERROR(-(ОБОРУДВАНЕ[Първоначална стойност]>0)*(ОБОРУДВАНЕ[Първоначална стойност]<>ОБОРУДВАНЕ[Първоначална вноска])*PMT(ОБОРУДВАНЕ[Лихвен процент на заема]/Месеци_в_годината,ОБОРУДВАНЕ[Срок на заем\n(години)]*Месеци_в_годината,ОБОРУДВАНЕ[Първоначална стойност]-ОБОРУДВАНЕ[Първоначална вноска]),0)","v":634.06458586867973},{"$f":"ОБОРУДВАНЕ[[#This Row],[Месечно плащане]]+ОБОРУДВАНЕ[Оперативни разходи \nза месец]","v":834.06458586867973},{"$f":"IFERROR((ОБОРУДВАНЕ[Първоначална стойност]>0)*SLN(ОБОРУДВАНЕ[Първоначална стойност],ОБОРУДВАНЕ[Очаквана стойност в края на договора],ОБОРУДВАНЕ[Срок на заем\n(години)]),0)","v":2500},{"$f":"IFERROR(ОБОРУДВАНЕ[Годишна амортизация\n(линейна)]/Месеци_в_годината,0)","v":208.33333333333334},{"$f":"IFERROR(ОБОРУДВАНЕ[Първоначална стойност]-(ОБОРУДВАНЕ[Годишна амортизация\n(линейна)]*((TODAY()-ОБОРУДВАНЕ[Дата на покупка \nили лизинг])/Дни_в_годината)),0)","v":24890.410958904111}]
[null,234,"Марка модел 2","Главен офис","Добра","Локално",4,12500,1500,"2011-03-10",3,7.7499999999999999E-2,120,3000,{"$f":"IFERROR(SUMPRODUCT(--(DAY(ROW(OFFSET($A$1,,,DATE(YEAR(ОБОРУДВАНЕ[[#This Row],[Дата на покупка \nили лизинг]])+ОБОРУДВАНЕ[[#This Row],[Срок на заем\n(години)]],MONTH(ОБОРУДВАНЕ[[#This Row],[Дата на покупка \nили лизинг]])-1,DAY(ОБОРУДВАНЕ[[#This Row],[Дата на покупка \nили лизинг]]))-TODAY()))+DATE(YEAR(ОБОРУДВАНЕ[[#This Row],[Дата на покупка \nили лизинг]])+ОБОРУДВАНЕ[[#This Row],[Срок на заем\n(години)]],MONTH(ОБОРУДВАНЕ[[#This Row],[Дата на покупка \nили лизинг]]),DAY(ОБОРУДВАНЕ[[#This Row],[Дата на покупка \nили лизинг]]))-1)=DAY(ОБОРУДВАНЕ[[#This Row],[Дата на покупка \nили лизинг]]))),0)","v":13},{"$f":"IFERROR(-(ОБОРУДВАНЕ[Първоначална стойност]>0)*(ОБОРУДВАНЕ[Първоначална стойност]<>ОБОРУДВАНЕ[Първоначална вноска])*PMT(ОБОРУДВАНЕ[Лихвен процент на заема]/Месеци_в_годината,ОБОРУДВАНЕ[Срок на заем\n(години)]*Месеци_в_годината,ОБОРУДВАНЕ[Първоначална стойност]-ОБОРУДВАНЕ[Първоначална вноска]),0)","v":343.43280007691891},{"$f":"ОБОРУДВАНЕ[[#This Row],[Месечно плащане]]+ОБОРУДВАНЕ[Оперативни разходи \nза месец]","v":463.43280007691891},{"$f":"IFERROR((ОБОРУДВАНЕ[Първоначална стойност]>0)*SLN(ОБОРУДВАНЕ[Първоначална стойност],ОБОРУДВАНЕ[Очаквана стойност в края на договора],ОБОРУДВАНЕ[Срок на заем\n(години)]),0)","v":3166.6666666666665},{"$f":"IFERROR(ОБОРУДВАНЕ[Годишна амортизация\n(линейна)]/Месеци_в_годината,0)","v":263.88888888888886},{"$f":"IFERROR(ОБОРУДВАНЕ[Първоначална стойност]-(ОБОРУДВАНЕ[Годишна амортизация\n(линейна)]*((TODAY()-ОБОРУДВАНЕ[Дата на покупка \nили лизинг])/Дни_в_годината)),0)","v":6496.3470319634707}]
[null,345,"Марка модел 2","Клон 1","Средна","Други",1,10000,2500,"2010-09-15",4,0.08,285,1000,{"$f":"IFERROR(SUMPRODUCT(--(DAY(ROW(OFFSET($A$1,,,DATE(YEAR(ОБОРУДВАНЕ[[#This Row],[Дата на покупка \nили лизинг]])+ОБОРУДВАНЕ[[#This Row],[Срок на заем\n(години)]],MONTH(ОБОРУДВАНЕ[[#This Row],[Дата на покупка \nили лизинг]])-1,DAY(ОБОРУДВАНЕ[[#This Row],[Дата на покупка \nили лизинг]]))-TODAY()))+DATE(YEAR(ОБОРУДВАНЕ[[#This Row],[Дата на покупка \nили лизинг]])+ОБОРУДВАНЕ[[#This Row],[Срок на заем\n(години)]],MONTH(ОБОРУДВАНЕ[[#This Row],[Дата на покупка \nили лизинг]]),DAY(ОБОРУДВАНЕ[[#This Row],[Дата на покупка \nили лизинг]]))-1)=DAY(ОБОРУДВАНЕ[[#This Row],[Дата на покупка \nили лизинг]]))),0)","v":19},{"$f":"IFERROR(-(ОБОРУДВАНЕ[Първоначална стойност]>0)*(ОБОРУДВАНЕ[Първоначална стойност]<>ОБОРУДВАНЕ[Първоначална вноска])*PMT(ОБОРУДВАНЕ[Лихвен процент на заема]/Месеци_в_годината,ОБОРУДВАНЕ[Срок на заем\n(години)]*Месеци_в_годината,ОБОРУДВАНЕ[Първоначална стойност]-ОБОРУДВАНЕ[Първоначална вноска]),0)","v":183.09691756126861},{"$f":"ОБОРУДВАНЕ[[#This Row],[Месечно плащане]]+ОБОРУДВАНЕ[Оперативни разходи \nза месец]","v":468.09691756126858},{"$f":"IFERROR((ОБОРУДВАНЕ[Първоначална стойност]>0)*SLN(ОБОРУДВАНЕ[Първоначална стойност],ОБОРУДВАНЕ[Очаквана стойност в края на договора],ОБОРУДВАНЕ[Срок на заем\n(години)]),0)","v":2250},{"$f":"IFERROR(ОБОРУДВАНЕ[Годишна амортизация\n(линейна)]/Месеци_в_годината,0)","v":187.5},{"$f":"IFERROR(ОБОРУДВАНЕ[Първоначална стойност]-(ОБОРУДВАНЕ[Годишна амортизация\n(линейна)]*((TODAY()-ОБОРУДВАНЕ[Дата на покупка \nили лизинг])/Дни_в_годината)),0)","v":4649.3150684931506}]
[null,"Общо",null,null,null,null,{"$f":"SUBTOTAL(101,ОБОРУДВАНЕ[Оставащи \nгодини работа ])","v":3.3333333333333335},{"$f":"SUBTOTAL(109,ОБОРУДВАНЕ[Първоначална стойност])","v":52500},{"$f":"SUBTOTAL(109,ОБОРУДВАНЕ[Първоначална вноска])","v":9000},null,{"$f":"SUBTOTAL(101,ОБОРУДВАНЕ[Срок на заем\n(години)])","v":3.6666666666666665},{"$f":"SUBTOTAL(101,ОБОРУДВАНЕ[Лихвен процент на заема])","v":8.5833333333333331E-2},{"$f":"SUBTOTAL(109,ОБОРУДВАНЕ[Оперативни разходи \nза месец])","v":605},{"$f":"SUBTOTAL(109,ОБОРУДВАНЕ[Очаквана стойност в края на договора])","v":24000},{"$f":"SUBTOTAL(101,ОБОРУДВАНЕ[Оставащи \nмесечни плащания])","v":18.333333333333332},{"$f":"SUBTOTAL(109,ОБОРУДВАНЕ[Месечно плащане])","v":1160.5943035068672},{"$f":"SUBTOTAL(109,ОБОРУДВАНЕ[Общо \nразходи за месец])","v":1765.5943035068672},{"$f":"SUBTOTAL(101,ОБОРУДВАНЕ[Годишна амортизация\n(линейна)])","v":2638.8888888888887},{"$f":"SUBTOTAL(101,ОБОРУДВАНЕ[Месечна амортизация\n(линейна)])","v":219.90740740740739},{"$f":"SUBTOTAL(109,ОБОРУДВАНЕ[Текуща стойност])","v":36036.073059360737}]

{"sheet":"Данни за обобщена таблица","index":2,"n_rows":15,"n_cols":8,"rows_kept":15,"cut":false,"hidden":true,"merged":[]}
[null,"Данни за обобщена таблица"]
[null,"Този лист трябва да остане скрит. Промяна в структурата на обобщената таблица на този лист може да доведе до грешки в сегментаторите на таблото."]
[]
[null,"Описание на артикул\n(марка и модел)","(Всички)"]
[null,"Местоположение","(Всички)"]
[null,"Състояние","(Всички)"]
[null,"Доставчик","(Всички)"]
[null,"Оставащи \nгодини работа ","(Всички)"]
[null,"Срок на заем\n(години)","(Всички)"]
[]
[null,"Етикети на редове","Брой","Оперативни разходи","Сума на плащане","Общо разходи за месец","Месечна амортизация","Текуща стойност "]
[null,123,1,200,634.06458586867973,834.06458586867973,208.33333333333334,24890.410958904111]
[null,234,1,120,343.43280007691891,463.43280007691891,263.88888888888886,6496.3470319634707]
[null,345,1,285,183.09691756126861,468.09691756126858,187.5,4649.3150684931506]
[null,"Крайна обща сума",3,605,1160.5943035068672,1765.5943035068672,659.72222222222217,36036.073059360737]